bitfinex/quotes_ETHUSD_20250214
["timestamp","ask_amount","ask_price","bid_price","bid_amount"]
[1739524067170,3.68643,2712.7,2712.4,0.12853938]
[1739524067374,3.68643,2712.7,2712.2,3.68704]
[1739524067729,4.43957,2713.1,2712.1,0.97544128]
[1739524067896,4.43957,2713.1,2712.3,0.12863126]
[1739524067897,3.68638,2712.7,2712.3,0.12863126]
[1739524068205,3.68638,2712.7,2712.4,0.12853938]
[1739524068334,3.68638,2712.7,2712.2,3.68702]
[1739524068539,3.68638,2712.7,2712.3,0.12863126]
[1739524068862,3.68658,2712.6,2712.1,3.83717]
[1739524069035,3.68658,2712.6,2712.4,0.12853938]
[1739524069240,3.68633,2712.8,2712.2,3.68697]
[1739524069480,3.68636,2712.8,2712.5,0.12844751]
[1739524069635,3.68647,2712.7,2712.1,3.83711]
[1739524069984,3.68647,2712.7,2712.2,4.14372228]
[1739524070141,3.68647,2712.7,2712.3,0.12863126]
[1739524070342,3.68647,2712.7,2712.2,4.14372228]
[1739524070535,3.68651,2712.6,2712.3,0.12863126]
[1739524070738,3.68652,2712.6,2712.2,0.45672228]
[1739524071082,3.68652,2712.6,2712.3,0.12863126]
[1739524071455,3.68625,2712.8,2712.2,0.45672228]
[1739524071664,3.68643,2712.7,2712.4,0.12853938]
[1739524071861,3.68643,2712.7,2712.2,4.14373228]
[1739524072189,3.68636,2712.7,2712.2,4.14373228]
[1739524072359,3.68636,2712.7,2712.3,0.12863126]
[1739524072548,3.68636,2712.7,2712.2,4.14373228]
[1739524072745,3.68636,2712.7,2712.3,0.12863126]
[1739524072959,3.68625,2712.8,2712.2,4.14369228]
[1739524073150,3.68643,2712.7,2712.3,0.12863126]
[1739524073344,3.68643,2712.7,2712.2,4.14368228]
[1739524073551,3.68643,2712.7,2712.3,0.12859208]
[1739524073753,3.68643,2712.7,2712.2,0.45672228]
[1739524073754,3.6865,2712.6,2712.2,0.45672228]
[1739524073965,3.6865,2712.6,2712.3,0.12859208]
[1739524074161,3.68618,2712.9,2712.5,0.72858386]
[1739524074496,3.68636,2712.7,2712.6,0.12831647]
[1739524077529,3.68541,2713.4,2712.7,3.68636]
[1739524077818,3.68534,2713.5,2712.9,3.68606]
[1739524077955,3.68534,2713.5,2713.0,0.15]
[1739524078155,3.68534,2713.5,2713.1,0.12782675]
[1739524078412,3.68542,2713.4,2713.1,0.12782675]
[1739524078556,3.68568,2713.2,2713.1,0.12782675]
[1739524079111,7.815762,2713.4,2713.1,0.12782675]
[1739524079313,3.68568,2713.2,2713.0,0.15]
[1739524079821,2.4506335,2714.1,2713.0,0.15]
[1739524079980,3.68481,2713.9,2713.3,3.68551]
[1739524080317,3.68461,2714.0,2713.5,0.15]
[1739524080613,4.77969855,2714.0,2713.5,0.15]
[1739524080818,4.44714,2714.2,2713.6,3.68512]
[1739524081118,3.68448,2714.1,2713.6,3.68512]
[1739524081460,0.7627,2714.2,2713.6,3.68512]
[1739524081731,0.7627,2714.2,2713.8,3.68482]
[1739524081886,2.4506335,2714.4,2713.8,0.736994]
[1739524082061,0.18667866,2714.6,2713.9,0.15]
[1739524082261,6.8970735,2714.7,2714.1,3.68436]
[1739524082562,6.8970735,2714.7,2713.9,0.15]
[1739524082563,6.1343735,2714.7,2714.0,3.68449]
[1739524082823,6.1343735,2714.7,2714.2,3.68422]
[1739524082824,2.4506335,2714.7,2714.2,3.68422]
[1739524082964,3.68338,2714.9,2714.3,3.68417]
[1739524083170,3.68338,2714.9,2714.2,3.68422]
[1739524083369,3.68353,2714.8,2714.2,3.68422]
[1739524083590,3.68338,2714.9,2714.3,3.68418]
[1739524083987,3.68338,2714.9,2714.3,3.6841]
[1739524084719,3.68338,2714.9,2714.3,7.3682]
[1739524084885,3.68338,2714.9,2714.3,3.6841]
[1739524086109,3.68338,2714.9,2714.4,0.15]
[1739524086420,3.68338,2714.9,2714.5,0.74027338]
[1739524087045,3.68316,2715.1,2714.5,0.74027338]
[1739524087183,3.68316,2715.1,2714.5,4.42416338]
[1739524087383,3.68324,2715.0,2714.5,1.56609972]
[1739524087940,2.4506335,2715.3,2714.5,1.56609972]
[1739524088104,3.68342,2714.9,2714.5,1.56609972]
[1739524088720,3.68317,2715.1,2714.5,5.24997972]
[1739524088915,3.68317,2715.1,2714.5,8.93379972]
[1739524089084,3.68317,2715.1,2714.6,0.90837997]
[1739524089595,3.68264,2715.5,2714.8,0.15]
[1739524089781,3.68293,2715.3,2714.8,0.15]
[1739524089978,3.68278,2715.4,2714.8,0.15]
[1739524090182,3.68278,2715.4,2714.8,3.8334]
[1739524090405,6.1331035,2715.6,2715.0,3.68323]
[1739524090677,0.8211,2716.0,2714.9,0.78852165]
[1739524090948,0.8211,2716.0,2714.7,0.0075]
[1739524090949,3.68223,2715.8,2715.2,3.68291]
[1739524091251,4.50305,2716.0,2715.3,3.68277]
[1739524091607,3.68224,2715.8,2715.2,3.68289]
[1739524091846,3.68224,2715.8,2715.3,4.051119]
[1739524092148,3.68224,2715.8,2715.3,0.368289]
[1739524092713,3.68233,2715.7,2715.3,0.368289]
[1739524092908,3.68224,2715.8,2715.3,0.368289]
[1739524093667,0.8211,2716.0,2715.2,0.73590805]
[1739524093668,3.68238,2715.7,2715.2,0.73590805]
[1739524093865,3.68233,2715.7,2715.2,0.73590805]
[1739524094063,2.4506335,2715.9,2715.2,0.73590805]
[1739524094287,3.86498579,2716.2,2715.3,0.12342334]
[1739524094288,3.68269,2715.4,2715.3,0.12342334]
[1739524094486,5.48537835,2715.4,2715.3,0.12342334]
[1739524094701,3.68306,2715.2,2714.7,0.15]
[1739524094822,3.68314,2715.1,2714.6,0.73135214]
[1739524095026,0.8211,2715.4,2714.8,0.12394269]
[1739524095294,3.68285,2715.3,2714.8,3.68344]
[1739524095426,3.68285,2715.3,2714.9,0.1239162]
[1739524096265,3.68299,2715.2,2714.6,4.41504214]
[1739524096480,4.50387,2715.4,2715.0,0.1238245]
[1739524096657,3.6829,2715.3,2714.8,3.6835]
[1739524096973,3.68271,2715.4,2715.1,0.12379368]
[1739524097167,3.68271,2715.4,2715.0,0.15]
[1739524097368,3.68271,2715.4,2715.2,0.123702]
[1739524097569,3.68296,2715.2,2715.1,0.12379368]
[1739524097869,3.68296,2715.2,2715.0,0.15]
[1739524098379,0.18001238,2715.6,2714.1,0.2496]
[1739524098380,3.68364,2714.7,2714.1,0.2496]
[1739524098528,3.68381,2714.6,2714.1,0.2496]
[1739524098728,0.8211,2714.9,2714.2,0.15]
[1739524098955,3.68315,2715.1,2714.3,3.68418]
[1739524099269,3.68338,2714.9,2714.4,0.383418]
[1739524099475,3.68355,2714.8,2714.4,0.383418]
[1739524099645,3.68367,2714.7,2714.4,0.383418]
[1739524099846,3.68367,2714.7,2714.2,0.15]
[1739524100073,3.68337,2715.0,2714.2,0.15]
[1739524100373,3.68352,2714.8,2714.2,3.83427]
[1739524100743,3.68352,2714.8,2714.2,0.15]
[1739524100947,3.68352,2714.8,2714.3,0.48310772]
[1739524101148,3.68352,2714.8,2714.3,3.68416]
[1739524101367,3.68352,2714.8,2714.2,3.8343]
[1739524102066,3.68352,2714.8,2714.2,3.83432]
[1739524102873,3.68373,2714.7,2714.2,0.15]
[1739524103078,3.68405,2714.5,2714.2,0.15]
[1739524104069,3.68419,2714.3,2714.2,0.15]
[1739524104404,3.68432,2714.2,2714.1,0.2496]
[1739524104695,3.68407,2714.4,2714.1,0.2496]
[1739524105040,3.68378,2714.6,2714.2,0.12018]
[1739524105399,3.68399,2714.5,2714.2,0.525607]
[1739524105731,3.68408,2714.4,2714.2,0.12018]
[1739524106032,3.68419,2714.3,2714.2,0.12018]
[1739524106700,3.68405,2714.4,2714.2,0.12018]
[1739524106887,3.68394,2714.5,2714.2,0.12018]
[1739524107228,3.68419,2714.3,2714.2,0.12018]
[1739524108224,3.68419,2714.3,2714.1,0.2496]
[1739524108424,3.68432,2714.2,2714.1,0.2496]
[1739524109017,4.43442,2714.2,2714.1,0.2496]
[1739524109232,5.49134435,2714.2,2714.1,0.2496]
[1739524111161,5.49884435,2714.2,2714.1,0.2496]
[1739524111540,5.49884435,2714.2,2714.1,1e-05]
[1739524111751,4.74874435,2714.2,2714.1,1e-05]
[1739524112042,5.49884435,2714.2,2714.1,1e-05]
[1739524112204,0.7501,2714.0,2713.1,5.841]
[1739524112399,3.68568,2713.2,2713.1,5.841]
[1739524112605,3.68596,2713.0,2712.6,0.75347416]
[1739524114102,3.68596,2713.0,2712.7,0.39034742]
[1739524114305,3.68562,2713.3,2712.7,0.39034742]
[1739524114731,3.68582,2713.1,2712.7,0.39034742]
[1739524116429,3.68563,2713.3,2712.7,0.39034742]
[1739524116670,3.68584,2713.1,2712.7,0.39034742]
[1739524116824,7.37177,2713.1,2712.7,0.39034742]
[1739524117164,3.68584,2713.1,2712.7,0.39034742]
[1739524117542,3.68562,2713.3,2712.7,0.39034742]
[1739524117871,3.68583,2713.1,2712.7,0.39034742]
[1739524118224,7.37173,2713.1,2712.7,0.39034742]
[1739524118560,3.68561,2713.3,2712.7,0.39034742]
[1739524118747,3.68584,2713.1,2712.7,0.39034742]
[1739524119130,3.68561,2713.3,2712.7,0.39034742]
[1739524119331,3.68561,2713.3,2712.7,4.07668742]
[1739524119547,3.68578,2713.2,2712.7,4.07669742]
[1739524119752,3.68589,2713.1,2712.7,0.39034742]
[1739524120125,3.68585,2713.1,2712.7,0.39034742]
[1739524120660,0.18124551,2713.4,2712.7,0.39034742]
[1739524120865,3.68591,2713.1,2712.7,0.39034742]
[1739524121361,3.68563,2713.3,2712.8,0.48302516]
[1739524121752,7.37127,2713.3,2712.8,3.68615]
[1739524121923,3.68568,2713.2,2712.7,4.07670742]
[1739524122123,3.68573,2713.2,2712.7,4.07670742]
[1739524122940,3.86666551,2713.4,2712.8,3.68615]
[1739524123140,3.6856,2713.3,2712.8,3.68615]
[1739524123338,3.6856,2713.3,2712.9,0.40764974]
[1739524123536,3.68574,2713.2,2712.9,0.40764974]
[1739524123769,3.68574,2713.2,2712.7,0.39034742]
[1739524124369,3.68597,2713.0,2712.8,0.12334946]
[1739524124754,3.68597,2713.0,2712.6,0.75347416]
[1739524124949,3.68577,2713.2,2712.9,0.12325761]
[1739524125196,3.68582,2713.1,2712.6,4.78133611]
[1739524125489,3.68582,2713.1,2712.7,0.79313361]
[1739524125794,3.68582,2713.1,2712.7,0.91657492]
[1739524126165,3.68582,2713.1,2712.7,1.25796687]
[1739524127655,3.68564,2713.3,2712.7,1.25796687]
[1739524127656,3.68619,2712.9,2712.7,1.25796687]
[1739524127893,3.686,2713.0,2712.7,1.25796687]
[1739524128092,3.6859,2713.1,2712.7,1.25796687]
[1739524128295,3.68564,2713.3,2712.8,0.5697931]
[1739524128494,3.68564,2713.3,2712.7,8.63050687]
[1739524128666,3.68576,2713.2,2712.9,0.12325761]
[1739524128852,3.68576,2713.2,2712.8,0.12334946]
[1739524129056,3.68564,2713.3,2712.8,0.12334946]
[1739524129257,3.68564,2713.3,2712.8,0.69310938]
[1739524129594,3.68568,2713.2,2712.8,1.03450133]
[1739524129795,3.68583,2713.1,2712.8,1.03450133]
[1739524130663,3.68583,2713.1,2712.8,0.69310938]
[1739524132489,3.68564,2713.3,2712.8,1.03450133]
[1739524133201,3.68577,2713.2,2712.8,1.03450133]
[1739524133397,3.68577,2713.2,2712.9,0.34139195]
[1739524133573,3.43789814,2714.1,2713.0,0.15]
[1739524133773,3.68467,2714.0,2713.5,0.15]
[1739524134096,3.68433,2714.2,2713.6,0.12258004]
[1739524134471,3.68433,2714.2,2713.7,0.34139195]
[1739524134673,3.68433,2714.2,2713.7,4.02635195]
[1739524134989,3.68447,2714.1,2713.8,0.12228325]
[1739524135415,3.68447,2714.1,2713.7,1.07394077]
[1739524135707,3.68447,2714.1,2713.8,0.12228325]
[1739524135891,3.68447,2714.1,2713.7,1.07394077]
[1739524136092,3.68447,2714.1,2713.9,0.12200863]
[1739524136419,3.68419,2714.3,2713.8,0.46349236]
[1739524136569,3.68433,2714.2,2714.0,0.12191686]
[1739524136772,3.68447,2714.1,2713.9,0.12200863]
[1739524136982,3.68447,2714.1,2713.8,0.34139195]
[1739524137183,7.36876,2714.2,2713.9,0.34139195]
[1739524137414,3.68433,2714.2,2713.9,0.34139195]
[1739524137720,3.68451,2714.1,2713.9,0.34139195]
[1739524138097,3.68459,2714.0,2713.9,0.34139195]
[1739524138615,3.68473,2713.9,2713.8,0.34139195]
[1739524139129,3.68459,2714.0,2713.8,0.34139195]
[1739524139303,3.68473,2713.9,2713.8,0.34139195]
[1739524139621,3.68476,2713.9,2713.7,0.73254882]
[1739524140469,3.68459,2714.0,2713.7,0.73254882]
[1739524140674,7.3693,2714.0,2713.7,0.73254882]
[1739524140909,3.68475,2713.9,2713.7,0.73254882]
[1739524141607,4.49195,2713.9,2713.7,0.73254882]
[1739524141787,4.49195,2713.9,2713.7,1.07394077]
[1739524142313,3.68459,2714.0,2713.7,0.34139195]
[1739524142679,3.68481,2713.9,2713.7,0.34139195]
[1739524143089,3.68481,2713.9,2713.4,0.34139195]
[1739524143593,3.68481,2713.9,2713.4,4.02676195]
[1739524143991,0.8072,2714.1,2713.5,0.34139195]
[1739524144192,4.49178,2714.1,2713.5,0.34139195]
[1739524144525,3.68472,2714.0,2713.6,0.7558474]
[1739524144681,3.68473,2713.9,2713.6,0.7558474]
[1739524145076,3.68448,2714.1,2713.7,0.15]
[1739524145525,3.68448,2714.1,2713.7,0.49139195]
[1739524146502,0.18232539,2714.2,2713.7,0.49139195]
[1739524146681,3.68449,2714.1,2713.7,0.49139195]
[1739524146878,3.68428,2714.3,2713.8,0.34139195]
[1739524147082,3.68413,2714.4,2713.9,3.68465]
[1739524147495,3.68413,2714.4,2714.0,0.12165127]
[1739524148339,3.68413,2714.4,2714.0,0.46304322]
[1739524148534,3.68372,2714.7,2714.1,7.51879]
[1739524148829,3.68383,2714.6,2714.1,3.83437]
[1739524149117,3.68383,2714.6,2714.2,0.12140681]
[1739524149540,3.68383,2714.6,2714.2,0.46279876]
[1739524150336,3.68393,2714.5,2714.2,0.46279876]
[1739524150565,3.68406,2714.4,2714.2,0.46279876]
[1739524150779,6.32274304,2715.0,2714.2,0.12140681]
[1739524150780,3.68419,2714.3,2714.2,0.12140681]
[1739524150951,4.50099,2714.3,2714.2,0.12140681]
[1739524151466,3.68432,2714.2,2714.1,0.34139195]
[1739524151850,6.1346935,2714.4,2713.7,0.34139195]
[1739524151851,0.8168,2714.0,2713.7,0.34139195]
[1739524152054,6.1354935,2713.8,2713.7,0.34139195]
[1739524152516,3.68486,2713.8,2713.7,0.34139195]
[1739524152941,3.68473,2713.9,2713.7,0.34139195]
[1739524153111,3.68486,2713.8,2713.4,0.15]
[1739524153650,0.8168,2714.0,2713.4,0.60664287]
[1739524153953,3.68474,2713.9,2713.4,0.60664287]
[1739524154339,3.68474,2713.9,2713.5,0.46353261]
[1739524154960,3.68386,2714.6,2714.0,0.15]
[1739524155174,4.50036,2714.8,2714.0,3.8345]
[1739524155327,3.6838,2714.6,2714.1,0.1216814]
[1739524155527,3.68404,2714.5,2714.1,0.1216814]
[1739524155753,3.68408,2714.4,2714.1,0.46307335]
[1739524156542,3.68428,2714.3,2714.1,0.46307335]
[1739524156863,3.68428,2714.3,2714.1,0.1216814]
[1739524157047,5.237896,2714.3,2713.9,0.34139195]
[1739524157237,3.68458,2714.1,2713.9,1.06497764]
[1739524157440,3.68458,2714.1,2714.0,0.12155118]
[1739524158625,3.68469,2714.0,2713.7,0.34139195]
[1739524158826,3.68469,2714.0,2713.8,0.34139195]
[1739524159626,3.68469,2714.0,2713.8,1.06401866]
[1739524159824,3.68469,2714.0,2713.9,0.34139195]
[1739524162549,3.68435,2714.2,2713.9,0.34139195]
[1739524162986,3.68459,2714.0,2713.9,0.34139195]
[1739524163154,3.68459,2714.0,2713.8,0.72262671]
[1739524164294,3.68448,2714.1,2713.8,0.72262671]
[1739524164468,3.68448,2714.1,2713.9,0.34388892]
[1739524164996,4.68568544,2714.3,2713.9,0.34388892]
[1739524165352,3.68447,2714.1,2713.9,0.34388892]
[1739524165782,4.68577544,2714.3,2713.9,0.34388892]
[1739524165968,7.55326544,2714.3,2714.0,0.34388892]
[1739524166162,7.55323544,2714.3,2714.0,0.34388892]
[1739524166459,3.6844,2714.2,2714.0,0.34388892]
[1739524166861,3.86895544,2714.3,2714.0,0.34388892]
[1739524167217,7.55327544,2714.3,2714.1,0.34388892]
[1739524167392,7.55323544,2714.3,2714.1,0.34388892]
[1739524167697,3.68432,2714.2,2714.1,0.34388892]
[1739524169607,3.68432,2714.2,2714.1,0.46525255]
[1739524170303,3.86895544,2714.3,2714.1,0.46525255]
[1739524170457,3.68432,2714.2,2714.1,0.46525255]
[1739524173881,5.23624754,2714.2,2714.1,0.46525255]
[1739524174272,5.23624754,2714.2,2714.1,0.34388892]
[1739524174475,3.68495,2713.8,2713.4,0.34388892]
[1739524174911,7.3699,2713.8,2713.5,0.12193608]
[1739524175215,3.68495,2713.8,2713.5,0.12193608]
[1739524175402,3.68502,2713.7,2713.6,0.34388892]
[1739524175592,3.68502,2713.7,2713.6,1.07398393]
[1739524175794,3.68502,2713.7,2713.6,1.19582821]
[1739524176413,5.218617,2713.7,2713.6,0.4657332]
[1739524176613,3.68495,2713.8,2713.6,0.4657332]
[1739524176802,3.685,2713.7,2713.6,0.4657332]
[1739524177504,3.68495,2713.8,2713.6,0.4657332]
[1739524177703,3.685,2713.7,2713.6,0.4657332]
[1739524194634,8.297147,2713.7,2713.6,0.4657332]
[1739524194836,8.297147,2713.7,2713.6,0.12184428]
[1739524195036,3.68554,2713.3,2713.2,0.72741224]
[1739524195195,3.68609,2712.9,2712.8,0.15]
[1739524195398,3.68609,2712.9,2712.8,0.27298367]
[1739524195943,3.68609,2712.9,2712.8,0.61733856]
[1739524196439,0.7955,2713.2,2712.8,0.61733856]
[1739524196648,3.68595,2713.0,2712.8,0.61733856]
[1739524196998,3.68595,2713.0,2712.9,0.34435489]
[1739524197324,3.68568,2713.3,2712.9,0.46724672]
[1739524197634,3.68571,2713.2,2712.9,0.89760039]
[1739524197825,7.3715,2713.2,2712.9,0.46724672]
[1739524198141,3.68571,2713.2,2712.9,0.46724672]
[1739524198337,3.68571,2713.2,2713.0,0.34435489]
[1739524198716,10.37149,2713.2,2713.1,0.12284315]
[1739524199039,3.68571,2713.2,2713.1,0.12284315]
[1739524199628,3.68571,2713.2,2713.1,0.46719804]
[1739524203474,3.68556,2713.3,2713.1,0.46719804]
[1739524203975,3.68568,2713.2,2713.1,0.61719804]
[1739524204168,3.68568,2713.2,2713.1,0.27284315]
[1739524205135,3.68568,2713.2,2713.1,0.61691547]
[1739524206488,3.68568,2713.2,2713.1,0.46691547]
[1739524210349,0.1847814,2713.4,2713.1,0.46691547]
[1739524210537,3.68562,2713.3,2713.1,0.46691547]
[1739524210980,0.1847814,2713.4,2713.1,0.46691547]
[1739524210981,3.68568,2713.2,2713.1,0.46691547]
[1739524211153,3.68568,2713.2,2713.1,0.12284315]
[1739524211534,3.68568,2713.2,2712.8,4.58720534]
[1739524211778,3.68568,2713.2,2713.1,0.12305651]
[1739524211977,3.68568,2713.2,2712.8,4.58720534]
[1739524212178,3.68568,2713.2,2713.1,0.12305651]
[1739524212349,3.68568,2713.2,2712.9,0.34417023]
[1739524212554,3.68568,2713.2,2713.1,0.12305651]
[1739524212756,3.68568,2713.2,2713.0,0.12314834]
[1739524213080,3.68568,2713.2,2713.1,0.12305651]
[1739524213261,3.68556,2713.3,2713.1,0.46722674]
[1739524213466,3.68556,2713.3,2713.1,0.34417023]
[1739524213673,3.68556,2713.3,2713.2,0.12296469]
[1739524214047,3.68556,2713.3,2713.2,0.46713492]
[1739524216195,7.37102,2713.4,2713.2,0.46713492]
[1739524216397,3.68549,2713.4,2713.2,0.46713492]
[1739524216851,3.68549,2713.4,2713.3,0.34417023]
[1739524217047,3.87248312,2713.4,2713.3,0.34417023]
[1739524217690,3.68522,2713.6,2713.3,0.34417023]
[1739524217909,3.68522,2713.6,2713.3,0.74716425]
[1739524218168,3.68522,2713.6,2713.4,0.12272446]
[1739524218332,3.68496,2713.8,2713.4,0.12272446]
[1739524218530,3.68478,2713.9,2713.4,3.80802446]
[1739524218737,3.68478,2713.9,2713.4,4.59180493]
[1739524218916,3.68467,2714.0,2713.5,0.34417023]
[1739524219117,3.68501,2713.7,2713.5,0.34417023]
[1739524219415,3.68488,2713.8,2713.6,0.12254086]
[1739524220001,3.68478,2713.9,2713.6,0.12254086]
[1739524220204,3.68478,2713.9,2713.7,0.34417023]
[1739524220384,7.3696,2713.9,2713.8,0.12235729]
[1739524220589,7.3696,2713.9,2713.7,0.34417023]
[1739524220824,3.68478,2713.9,2713.8,0.12217877]
[1739524220982,3.68478,2713.9,2713.7,0.34417023]
[1739524221184,3.68478,2713.9,2713.8,0.12217877]
[1739524221540,3.68478,2713.9,2713.8,0.34417023]
[1739524221688,3.68478,2713.9,2713.8,0.466349]
[1739524222294,3.86893544,2714.3,2713.8,0.466349]
[1739524222535,0.18469544,2714.3,2713.8,0.466349]
[1739524222739,3.6846,2714.0,2713.8,0.466349]
[1739524222936,3.6846,2714.0,2713.9,0.34417023]
[1739524223142,3.68455,2714.1,2713.9,0.34417023]
[1739524223446,3.68459,2714.0,2713.9,0.46618757]
[1739524224229,0.18469544,2714.3,2713.9,0.46618757]
[1739524224451,3.68454,2714.1,2713.9,0.46618757]
[1739524225256,3.68454,2714.1,2714.0,0.34417023]
[1739524225415,3.68454,2714.1,2714.0,0.46579971]
[1739524226755,3.68454,2714.1,2714.0,0.12162948]
[1739524227176,3.68465,2714.0,2713.7,0.34417023]
[1739524227455,3.68454,2714.1,2713.9,0.74170259]
[1739524228389,3.86897544,2714.3,2713.9,0.74170259]
[1739524228962,3.68449,2714.1,2713.9,0.74170259]
[1739524229204,3.68459,2714.0,2713.9,0.74170259]
[1739524231034,0.8094,2714.1,2713.9,0.74170259]
[1739524231332,4.49386,2714.1,2713.9,0.74170259]
[1739524231673,8.1784,2714.1,2713.9,0.74170259]
[1739524232116,4.49386,2714.1,2713.9,0.74170259]
[1739524232813,4.49386,2714.1,2713.9,1.08526852]
[1739524233117,3.68459,2714.0,2713.9,1.08526852]
[1739524233270,4.49386,2714.1,2713.9,1.08526852]
[1739524233711,3.68459,2714.0,2713.9,1.08526852]
[1739524233917,4.49386,2714.1,2713.9,0.74170259]
[1739524234417,3.68459,2714.0,2713.9,0.74170259]
[1739524235012,3.68479,2713.9,2713.7,0.34356593]
[1739524235276,3.68486,2713.8,2713.7,0.34356593]
[1739524235503,4.44636,2713.8,2713.2,3.68559]
[1739524235702,3.68511,2713.7,2713.2,4.579149]
[1739524236330,3.68523,2713.6,2713.5,0.75472254]
[1739524236492,3.6855,2713.4,2713.1,0.15]
[1739524236687,3.6855,2713.4,2713.3,0.34396577]
[1739524237092,3.68523,2713.6,2713.3,0.34396577]
[1739524237390,8.13143,2713.8,2713.3,1.0926478]
[1739524237719,3.68504,2713.7,2713.3,1.0926478]
[1739524238121,4.44646,2713.8,2713.4,0.34396577]
[1739524238318,3.6851,2713.7,2713.4,0.34396577]
[1739524238624,3.68521,2713.6,2713.4,0.34396577]
[1739524239392,3.68521,2713.6,2713.3,0.74868203]
[1739524239393,3.68521,2713.6,2713.5,0.34396577]
[1739524239818,3.6851,2713.7,2713.5,0.34396577]
[1739524240121,3.6848,2713.9,2713.5,0.49396577]
[1739524240508,7.36961,2713.9,2713.5,0.49396577]
[1739524240715,3.6848,2713.9,2713.6,0.34396577]
[1739524241264,7.36963,2713.9,2713.6,0.34396577]
[1739524241569,3.6848,2713.9,2713.7,0.34396577]
[1739524241715,0.7615,2714.2,2713.7,0.34396577]
[1739524241920,3.68447,2714.1,2713.7,0.34396577]
[1739524242469,3.68468,2714.0,2713.7,0.34396577]
[1739524242761,3.68468,2714.0,2713.8,0.34396577]
[1739524242961,3.6847,2714.0,2713.8,0.34396577]
[1739524243265,3.68447,2714.1,2713.8,0.34396577]
[1739524243638,3.68447,2714.1,2713.9,0.34396577]
[1739524244277,3.68447,2714.1,2714.0,0.16237551]
[1739524244480,3.68447,2714.1,2713.6,3.68502]
[1739524244775,3.68447,2714.1,2713.7,0.16265533]
[1739524244983,0.7615,2714.2,2713.9,3.0]
[1739524245275,0.18469544,2714.3,2714.0,0.31231892]
[1739524246655,4.44535,2714.6,2714.1,3.68445]
[1739524246856,4.44535,2714.6,2714.2,0.1621237]
[1739524247062,3.68392,2714.5,2714.2,0.1621237]
[1739524247267,3.68406,2714.4,2714.2,0.1621237]
[1739524247578,3.68392,2714.5,2714.2,0.1621237]
[1739524247957,3.68392,2714.5,2714.3,0.34431915]
[1739524248392,3.68392,2714.5,2714.4,0.16193722]
[1739524248899,4.44529,2714.6,2714.4,0.16193722]
[1739524249702,4.44529,2714.6,2714.0,3.83451]
[1739524249703,4.44529,2714.6,2714.5,0.16184398]
[1739524250156,4.44529,2714.6,2714.1,3.68441]
[1739524250356,4.44529,2714.6,2714.5,0.16184398]
[1739524250590,4.44529,2714.6,2714.0,3.8345]
[1739524250767,4.44529,2714.6,2714.5,0.16161766]
[1739524250974,4.44529,2714.6,2714.0,3.8345]
[1739524251500,4.44529,2714.6,2714.1,0.16199063]
[1739524251698,0.7615,2714.6,2714.1,0.16199063]
[1739524251871,3.68404,2714.5,2714.1,0.16199063]
[1739524252802,4.46535,2714.9,2714.1,0.93499398]
[1739524253000,4.46535,2714.9,2714.3,3.68419]
[1739524253352,4.46535,2714.9,2714.4,0.16153246]
[1739524253353,3.68372,2714.7,2714.4,0.16153246]
[1739524253782,3.68372,2714.7,2714.2,3.83423]
[1739524253982,0.7819,2714.9,2714.5,0.16142182]
[1739524254297,3.68372,2714.7,2714.6,0.16132859]
[1739524254472,0.7819,2714.9,2714.6,0.16132859]
[1739524254669,0.7819,2714.9,2714.3,3.68407]
[1739524254991,3.68354,2714.8,2714.4,0.54487419]
[1739524255796,3.68354,2714.8,2714.5,0.72047681]
[1739524256040,3.68354,2714.8,2714.6,0.16127638]
[1739524258441,3.68351,2714.8,2714.6,0.16127638]
[1739524259535,3.68351,2714.8,2714.3,3.68417]
[1739524259734,3.68351,2714.8,2714.7,0.16119186]
[1739524260046,0.7819,2714.9,2714.7,0.16119186]
[1739524260236,4.46528,2714.9,2714.4,4.43785462]
[1739524260422,4.46528,2714.9,2714.5,0.16137831]
[1739524260621,3.68361,2714.8,2714.5,0.16137831]
[1739524261336,4.46527,2714.9,2714.5,0.16137831]
[1739524261855,8.14875,2714.9,2714.5,0.16137831]
[1739524262038,4.46527,2714.9,2714.5,0.16137831]
[1739524263540,8.14872,2714.9,2714.5,0.16137831]
[1739524263748,9.33573584,2714.9,2714.5,0.16137831]
[1739524263949,3.68371,2714.7,2714.5,0.16137831]
[1739524264126,5.65238584,2714.9,2714.5,0.16137831]
[1739524264325,3.68351,2714.8,2714.3,4.41691282]
[1739524264625,3.68351,2714.8,2714.4,0.82511728]
[1739524264824,3.68351,2714.8,2714.5,0.1611651]
[1739524265540,3.68351,2714.8,2714.3,4.41692282]
[1739524265724,3.68351,2714.8,2714.6,0.16107188]
[1739524265929,3.68351,2714.8,2714.3,4.41692282]
[1739524266147,3.68351,2714.8,2714.7,0.16097866]
[1739524266314,3.68351,2714.8,2714.3,4.41697282]
[1739524266510,3.68351,2714.8,2714.7,0.16097866]
[1739524266511,7.49921,2714.8,2714.7,0.16097866]
[1739524266748,0.8157,2714.1,2713.7,5.4]
[1739524266942,2.00271584,2714.1,2713.7,0.15]
[1739524267110,2.00271584,2714.1,2714.0,0.16567113]
[1739524267649,0.8157,2714.1,2714.0,0.16567113]
[1739524268450,0.8157,2714.3,2714.0,0.16567113]
[1739524268620,2.44953658,2714.4,2714.0,0.16567113]
[1739524269008,3.6842,2714.3,2714.0,0.16567113]
[1739524269205,3.68412,2714.4,2714.0,0.16163134]
[1739524269408,0.8157,2714.7,2714.1,3.83438]
[1739524269740,3.68358,2714.8,2714.3,3.68409]
[1739524270063,3.68358,2714.8,2714.4,0.16125833]
[1739524270717,3.68366,2714.7,2714.4,0.16125833]
[1739524270961,3.68366,2714.7,2714.2,3.68429]
[1739524271169,3.68366,2714.7,2714.5,0.1611651]
[1739524271341,0.8157,2714.5,2714.2,0.73676329]
[1739524271668,6.94895658,2714.7,2714.2,4.42107329]
[1739524272163,6.94895658,2714.7,2714.2,0.73676329]
[1739524272521,6.94895658,2714.7,2714.2,4.42100329]
[1739524272522,3.26523658,2714.7,2714.2,4.42100329]
[1739524272721,4.49915,2714.9,2714.4,3.68403]